lending/lending_fUSD_20251125
["ID","MTS","AMOUNT","RATE_DAILY","PERIOD"]
[394889439,1764076232836,-500.0,0.00017989,2]
[394889440,1764076232845,-500.0,0.00017989,2]
[394889441,1764076232855,-500.0,0.00017989,2]
[394889442,1764076232865,-500.0,0.00017989,2]
[394889443,1764076232875,-176.8088027,0.0001799,2]
[394889444,1764076232885,-380.50860952,0.00017999,2]
[394889445,1764076232894,-500.0,0.00017999,2]
[394889446,1764076232903,-475.29614304,0.00017999,2]
[394889447,1764076232912,-177.65160887,0.00017999,2]
[394889448,1764076232922,-500.0,0.00017999,2]
[394889449,1764076232931,-501.48637729,0.00017999,2]
[394889450,1764076232940,-1997.0,0.00018,2]
[394889451,1764076232949,-30161.53581139,0.00018,2]
[394889452,1764076232961,-305.85181942,0.00018,2]
[394889453,1764076232972,-511.86081427,0.00018,2]
[394889458,1764076237369,-678.61967409,0.00017467,2]
[394889477,1764076239563,-396.08077847,0.00017467,2]
[394889491,1764076239727,-117.29954744,0.00017467,2]
[394889492,1764076239736,-1672.79732493,0.00018,2]
[394889494,1764076239747,-381.07102406,0.00018,2]
[394889514,1764076239944,-3319.65518541,0.00018,2]
[394889523,1764076245454,-810.8100003,0.00018,2]
[394889531,1764076245563,-836.12522341,0.00017587,2]
[394889534,1764076245867,-610.6875,0.00017587,2]
[394889535,1764076245879,-1314.578265,0.00017587,2]
[394889538,1764076246546,-874.82472522,0.00017587,2]
[394889596,1764076293508,-300.0,0.00017586,2]
[394889597,1764076293537,-161.782,0.00017586,2]
[394889598,1764076293567,-1454.219,0.00017586,2]
[394889599,1764076293682,-5734.482299,0.00017587,2]
[394889600,1764076293713,-10000.01,0.00017587,2]
[394889601,1764076302823,-10000.01,0.00017587,2]
[394889602,1764076304224,-10000.01,0.00017587,2]
[394889695,1764077040782,-347.41637537,0.0001618,2]
[394889696,1764077040807,-9305.17724926,0.0001618,2]
[394889697,1764077049882,-1000.0,0.00017,2]
[394889698,1764077049911,-234.0,0.00017,2]
[394889699,1764077049942,-250.0,0.00017,2]
[394889703,1764077119631,2221.25394202,9e-05,2]
[394889704,1764077121178,320.35,0.00013699,2]
[394889825,1764077210967,2897.55774179,0.00015,14]
[394889832,1764077263653,19135.25023112,0.00013,15]
[394889843,1764077431515,-1200.0,0.00014998,2]
[394889844,1764077431526,-212.0,0.00014998,2]
[394889845,1764077431535,-3901.42886975,0.00014999,2]
[394889846,1764077431544,-300.0,0.00014999,2]
[394889847,1764077431554,-150.0,0.00014999,2]
[394889848,1764077431563,-195.0,0.00015,2]
[394889849,1764077431573,-1097.70516362,0.00015,2]
[394889850,1764077431582,-4581.40741402,0.00015,4]
[394889851,1764077431594,-330.28954365,0.00015,4]
[394889852,1764077431689,-452.11662572,0.00015,4]
[394889853,1764077431701,-440.56810984,0.00015,4]
[394889854,1764077431712,-510.0,0.00015,4]
[394889861,1764077437625,-1391.14564365,0.00015,4]
[394889863,1764077437785,-43.72139244,0.00015,4]
[394889874,1764077439647,-424.34554978,0.00015,4]
[394889875,1764077439658,-2631.80219995,0.00015,4]
[394889876,1764077439669,-683.74499986,0.00015,4]
[394889877,1764077439760,-21774.30060033,0.00015,4]
[394889878,1764077439770,-45992.6141833,0.00015,2]
[394889888,1764077443344,-627.75605708,0.00015,2]
[394889889,1764077443356,-10865.98354927,0.00015,2]
[394889890,1764077443365,-195.0,0.0001514,2]
[394889891,1764077443377,-1093.92783441,0.000153,2]
[394889892,1764077443393,-2018.67825764,0.000154,2]
[394889893,1764077443402,-504.20528046,0.000154,2]
[394889894,1764077443410,-344.70192899,0.000159,2]
[394889895,1764077443419,-344.70192899,0.000159,2]
[394889896,1764077443428,-500.0,0.00015999,2]
[394889897,1764077443437,-500.0,0.00015999,2]
[394889898,1764077443446,-500.0,0.00015999,2]
[394889899,1764077443455,-382.1109968,0.00015999,2]
[394889900,1764077443463,-2733.38599253,0.00016,4]
[394889901,1764077443498,-418.86499719,0.00016,4]
[394889905,1764077445642,-3143.7961685,0.00016,4]
[394889906,1764077445809,-258.747484,0.00016,4]
[394889907,1764077445820,-1528.57003305,0.00016,4]
[394890021,1764078446741,199.58463907,0.00016973,14]
[394890075,1764078631769,-252.611657,0.00015744,2]
[394890076,1764078631780,-300.0,0.00015823,2]
[394890077,1764078631792,-300.0,0.00015823,2]
[394890078,1764078631803,-1200.0,0.00015823,2]
[394890079,1764078631815,-6057.37969317,0.00015824,2]
[394890080,1764078631826,-164.18412186,0.00015824,2]
[394890081,1764078631837,-209.54513283,0.00015824,2]
[394890082,1764078631849,-151.0,0.00015897,2]
[394890083,1764078631860,-300.0,0.00015899,2]
[394890084,1764078631874,-735.67046708,0.000159,2]
[394890085,1764078631891,-2238.41975202,0.000159,2]
[394890086,1764078631904,-116248.53761073,0.000159,2]
[394890087,1764078631917,-21325.31075601,0.000159,2]
[394890088,1764078631929,-82192.02260152,0.000159,2]
[394890089,1764078631945,-396.26681572,0.000159,2]
[394890090,1764078631958,-2173.02151897,0.000159,2]
[394890092,1764078631970,-4280.92663369,0.000159,2]
[394890093,1764078631984,-8916.74949449,0.000159,2]
[394890115,1764078637869,-600.0,0.000159,2]
[394890116,1764078637927,-1923.56255802,0.000159,2]
[394890117,1764078637940,-393.69097478,0.000159,2]
[394890125,1764078640095,-1545.3546987,0.000159,2]
[394890143,1764078645527,-6928.0560768,0.00015792,2]
[394890144,1764078645539,-54111.9439232,0.000159,2]
[394890152,1764078646085,-1310.39085504,0.000159,2]
[394890153,1764078646098,-7380.46713279,0.000159,2]
[394890204,1764078803400,10000.0,0.00018,7]
[394890225,1764078840496,-10000.0,0.00018,7]
[394890226,1764078882075,-1133.68053957,0.00018196,7]
[394890227,1764078882101,-1301.92,0.00022,7]
[394890228,1764078882125,-151.0,0.00024658,7]
[394890229,1764078882146,-151.0,0.00024658,7]
[394890230,1764078882166,-159.058973,0.00024658,7]
[394890231,1764078882186,-151.0,0.00024658,7]
[394890232,1764078882205,-151.0,0.00024658,7]
[394890233,1764078882228,-203.856488,0.00024658,7]
[394890234,1764078882250,-151.0,0.00024658,7]
[394890235,1764078882272,-293.934002,0.00024658,7]
[394890236,1764078882293,-151.0,0.00024658,7]
[394890237,1764078882314,-151.0,0.00024658,7]
[394890238,1764078882335,-151.0,0.00024658,7]
[394890239,1764078882354,-151.0,0.00024658,7]
[394890240,1764078882374,-155.646948,0.00024658,7]
[394890241,1764078882393,-151.0,0.00024658,7]
[394890242,1764078882412,-151.0,0.00024658,7]
[394890243,1764078882431,-180.315538,0.00024658,7]
[394890244,1764078882451,-174.714106,0.00024658,7]
[394890245,1764078882471,-151.0,0.00024658,7]
[394890246,1764078882491,-151.0,0.00024658,7]
[394890247,1764078882510,-151.0,0.00024658,7]
[394890248,1764078882530,-273.345549,0.00024658,7]
[394890249,1764078882551,-153.752937,0.00024658,7]
[394890250,1764078882572,-151.0,0.00024658,7]
[394890251,1764078882592,-151.0,0.00024658,7]
[394890252,1764078882611,-151.0,0.00024658,7]
[394890253,1764078882631,-151.0,0.00024658,7]
[394890254,1764078882650,-151.0,0.00024658,7]
[394890255,1764078882673,-151.0,0.00024658,7]
[394890256,1764078882693,-151.0,0.00024658,7]
[394890257,1764078882713,-151.0,0.00024658,7]
[394890258,1764078882735,-151.0,0.00024658,7]
[394890259,1764078882759,-151.0,0.00024658,7]
[394890260,1764078882779,-151.0,0.00024658,7]
[394890261,1764078882798,-151.0,0.00024658,7]
[394890262,1764078882819,-211.333293,0.00024658,7]
[394890263,1764078882839,-151.0,0.00024658,7]
[394890264,1764078882858,-151.0,0.00024658,7]
[394890265,1764078882886,-151.0,0.00024658,7]
[394890266,1764078882906,-151.0,0.00024658,7]
[394890267,1764078882926,-151.0,0.00024658,7]
[394890268,1764078882946,-151.0,0.00024658,7]
[394890269,1764078882966,-151.0,0.00024658,7]
[394890270,1764078882990,-151.0,0.00024658,7]
[394890271,1764078883262,-151.0,0.00024658,7]
[394890272,1764078883287,-151.0,0.00024658,7]
[394890273,1764078883312,-151.0,0.00024658,7]
[394890274,1764078883333,-151.0,0.00024658,7]
[394890275,1764078883354,-20.44162643,0.00024658,7]
[394890285,1764079004376,279.07,7.644e-05,2]
[394890286,1764079004593,279.07,8.046e-05,2]
[394890287,1764079004821,279.07,8.449e-05,2]
[394890288,1764079005056,279.07,8.851e-05,2]
[394890289,1764079005267,279.07,9.253e-05,2]
[394890290,1764079005468,279.07,9.656e-05,2]
[394890291,1764079005892,279.07,0.00010058,2]
[394890292,1764079006108,279.07,0.0001046,2]
[394890293,1764079006408,279.07,0.00010863,2]
[394890294,1764079006607,279.07,0.00011265,2]
[394890295,1764079006962,279.07,0.00011667,2]
[394890296,1764079007037,279.07,0.0001207,2]
[394890297,1764079007235,279.07,0.00012472,2]
[394890298,1764079007472,279.07,0.00012874,2]
[394890299,1764079007689,279.07,0.00013277,2]
[394890300,1764079008073,279.07,0.00013679,2]
[394890301,1764079008308,279.07,0.00014081,2]
[394890302,1764079008539,279.07,0.00014484,2]
[394890335,1764079258816,151.0,0.00014484,2]
[394890343,1764079352905,200.4318045,0.00014412,2]
[394890347,1764079464428,-211.0,0.00014886,2]
[394890348,1764079479293,-200.7184079,0.00014886,2]
[394890349,1764079501652,-653.0,0.00016,4]
[394890351,1764079559556,151.0,0.00014886,2]
[394890352,1764079560527,224.19332976,0.00014886,2]
[394890353,1764079569309,-180.0,0.00014886,2]
[394890354,1764079692615,165.39,0.00014824,2]
[394890355,1764079693525,-99.07,0.00014886,2]
[394890356,1764079693802,-1344.99092372,0.00015,2]
[394890357,1764079693847,-10000.01,0.00015,2]
[394890358,1764079693883,-10000.01,0.00015,2]
[394890359,1764079694030,-10000.01,0.00015,2]
[394890360,1764079694154,-3601.31318705,0.00015,2]
[394890361,1764079694184,-301.82596373,0.00015087,2]
[394890362,1764079694214,-279.07,0.00015288,2]
[394890363,1764079694242,-135.59169844,0.00015363,2]
[394890364,1764079694311,-1364.40830156,0.00015363,2]
[394890365,1764079694343,-150.0,0.00015363,2]
[394890366,1764079694372,-166.49,0.00015394,2]
[394890367,1764079694402,-331.8095,0.00015395,2]
[394890368,1764079694432,-151.0,0.00015486,2]
[394890369,1764079694459,-2751.0,0.00015495,2]
[394890370,1764079694487,-584.192003,0.0001562,2]
[394890371,1764079694515,-761.40318507,0.00015699,2]
[394890372,1764079694545,-44.41535063,0.000157,2]
[394890373,1764079694667,-119.3899226,0.000157,2]
[394890374,1764079696552,-151.0,0.00015483,2]
[394890375,1764079696579,-259.21765542,0.000157,2]
[394890376,1764079696606,-920.3746,0.000157,2]
[394890377,1764079696633,-300.0,0.00015709,2]
[394890378,1764079696660,-1200.0,0.0001571,2]
[394890379,1764079696688,-1200.0,0.00015711,2]
[394890380,1764079696714,-680.1040563,0.00015713,2]
[394890381,1764079696742,-278.61737656,0.00015767,2]
[394890382,1764079696853,-21.38262344,0.00015767,2]
[394890383,1764079699491,-3860.92652916,0.00015772,2]
[394890384,1764079699515,-2278.15694168,0.00015772,2]
[394890385,1764079699590,-500.0,0.00015773,2]
[394890386,1764079699618,-500.0,0.00015773,2]
[394890387,1764079699644,-500.0,0.00015773,2]
[394890388,1764079699671,-500.0,0.00015773,2]
[394890389,1764079699698,-494.11980425,0.00015773,2]
[394890390,1764079699724,-500.0,0.00015773,2]
[394890391,1764079699751,-500.0,0.00015773,2]
[394890392,1764079699777,-500.0,0.00015773,2]
[394890393,1764079699805,-500.0,0.00015773,2]
[394890394,1764079699832,-503.77862628,0.00015773,2]
[394890395,1764079699922,-325.0,0.00015797,2]
[394890396,1764079699949,-300.0,0.00015798,2]
[394890397,1764079699977,-500.0,0.00015799,2]
[394890398,1764079700005,-500.0,0.00015799,2]
[394890399,1764079700032,-552.79781674,0.00015799,2]
[394890400,1764079700063,-500.0,0.00015799,2]
[394890401,1764079700089,-500.0,0.00015799,2]
[394890402,1764079700116,-283.87492869,0.00015799,2]
[394890403,1764079700146,-500.0,0.00015799,2]
[394890404,1764079700172,-500.0,0.00015799,2]
[394890405,1764079700199,-500.0,0.00015799,2]
[394890406,1764079700463,-500.0,0.00015799,2]
[394890407,1764079700490,-484.46779217,0.00015799,2]
[394890408,1764079700521,-500.0,0.00015799,2]
[394890409,1764079700551,-452.04233049,0.00015799,2]
[394890410,1764079700578,-292.06215603,0.00015799,2]
[394890411,1764079700605,-500.0,0.00015799,2]
[394890412,1764079700636,-500.0,0.00015799,2]
[394890413,1764079700666,-500.0,0.00015799,2]
[394890414,1764079700696,-500.0,0.00015799,2]
[394890415,1764079700726,-500.0,0.00015799,2]
[394890416,1764079700757,-42.86544262,0.00015799,2]
[394890417,1764079700875,-457.13455738,0.00015799,2]
[394890418,1764079700905,-500.0,0.00015799,2]
[394890419,1764079700937,-500.0,0.00015799,2]
[394890420,1764079700968,-500.0,0.00015799,2]
[394890421,1764079700999,-500.0,0.00015799,2]
[394890422,1764079701033,-500.0,0.00015799,2]
[394890423,1764079701064,-500.0,0.00015799,2]
[394890424,1764079701094,-500.0,0.00015799,2]
[394890425,1764079701125,-500.0,0.00015799,2]
[394890426,1764079701158,-500.0,0.00015799,2]
[394890427,1764079701285,-500.0,0.00015799,2]
[394890428,1764079701317,-500.0,0.00015799,2]
[394890429,1764079701351,-500.0,0.00015799,2]
[394890430,1764079701382,-500.0,0.00015799,2]
[394890431,1764079701415,-500.0,0.00015799,2]
[394890432,1764079701445,-500.0,0.00015799,2]
[394890433,1764079701477,-500.0,0.00015799,2]
[394890434,1764079701506,-500.0,0.00015799,2]
[394890435,1764079701536,-500.0,0.00015799,2]
[394890436,1764079701565,-500.0,0.00015799,2]
[394890437,1764079702224,-230.10841066,0.00015799,2]
[394890438,1764079702239,-269.89158934,0.00015799,2]
[394890439,1764079702248,-230.10841066,0.00015799,2]
[394890440,1764079702262,-0.01,0.00015799,2]
[394890450,1764079773004,-1301.92,0.00022,7]
[394890451,1764079773027,-1301.92,0.000245,7]
[394890452,1764079773048,-151.0,0.00024658,7]
[394890453,1764079773069,-151.0,0.00024658,7]
[394890454,1764079773092,-151.0,0.00024658,7]
[394890455,1764079773114,-151.0,0.00024658,7]
[394890456,1764079773135,-151.0,0.00024658,7]
[394890457,1764079773155,-151.0,0.00024658,7]
[394890458,1764079773175,-151.0,0.00024658,7]
[394890459,1764079773195,-151.0,0.00024658,7]
[394890460,1764079773216,-151.0,0.00024658,7]
[394890461,1764079773238,-151.0,0.00024658,7]
[394890462,1764079773257,-151.0,0.00024658,7]
[394890463,1764079773278,-151.0,0.00024658,7]
[394890464,1764079773298,-165.130832,0.00024658,7]
[394890465,1764079773318,-151.0,0.00024658,7]
[394890466,1764079773341,-151.0,0.00024658,7]
[394890467,1764079773549,-151.0,0.00024658,7]
[394890468,1764079773570,-183.843137,0.00024658,7]
[394890469,1764079773590,-151.0,0.00024658,7]
[394890470,1764079773611,-151.0,0.00024658,7]
[394890471,1764079773631,-151.0,0.00024658,7]
[394890472,1764079773651,-151.0,0.00024658,7]
[394890473,1764079773671,-151.0,0.00024658,7]
[394890474,1764079773691,-151.0,0.00024658,7]
[394890475,1764079773711,-151.0,0.00024658,7]
[394890476,1764079773732,-151.0,0.00024658,7]
[394890477,1764079773752,-151.0,0.00024658,7]
[394890478,1764079773771,-151.0,0.00024658,7]
[394890479,1764079773791,-151.0,0.00024658,7]
[394890480,1764079773811,-151.0,0.00024658,7]
[394890481,1764079773831,-151.0,0.00024658,7]
[394890482,1764079773851,-151.0,0.00024658,7]
[394890483,1764079773871,-151.0,0.00024658,7]
[394890484,1764079773892,-181.776392,0.00024658,7]
[394890485,1764079775769,1014.784261,0.00024658,7]
[394890486,1764079776183,1014.784261,0.00024658,7]
[394890487,1764079776500,305.841117,0.00024658,7]
[394890502,1764079832063,-150.0,0.00015292,2]
[394890503,1764079832073,-1200.0,0.00015699,2]
[394890504,1764079832083,-14376.65436017,0.000157,2]
[394890505,1764079832094,-1000.0,0.000157,2]
[394890506,1764079832103,-500.0,0.00015773,2]
[394890507,1764079832319,-300.0,0.00015798,2]
[394890508,1764079832330,-269.88158934,0.00015799,2]
[394890509,1764079832340,-500.0,0.00015799,2]
[394890510,1764079832350,-500.0,0.00015799,2]
[394890511,1764079832363,-500.0,0.00015799,2]
[394890512,1764079832372,-500.0,0.00015799,2]
[394890513,1764079832383,-500.0,0.00015799,2]
[394890514,1764079832392,-500.0,0.00015799,2]
[394890515,1764079832403,-500.0,0.00015799,2]
[394890516,1764079832413,-500.0,0.00015799,2]
[394890517,1764079832423,-500.0,0.00015799,2]
[394890518,1764079832434,-500.0,0.00015799,2]
[394890519,1764079832445,-500.0,0.00015799,2]
[394890520,1764079832454,-500.0,0.00015799,2]
[394890521,1764079832464,-500.0,0.00015799,2]
[394890522,1764079832478,-500.0,0.00015799,2]
[394890523,1764079832489,-500.0,0.00015799,2]
[394890524,1764079832499,-327.64936983,0.00015799,2]
[394890525,1764079832509,-500.0,0.00015799,2]
[394890526,1764079832520,-500.0,0.00015799,2]
[394890527,1764079832532,-500.0,0.00015799,2]
[394890528,1764079832542,-500.0,0.00015799,2]
[394890529,1764079832552,-500.0,0.00015799,2]
[394890530,1764079832562,-500.0,0.00015799,2]
[394890531,1764079832572,-500.0,0.00015799,2]
[394890532,1764079832582,-500.0,0.00015799,2]
[394890533,1764079832592,-500.0,0.00015799,2]
[394890534,1764079832602,-500.0,0.00015799,2]
[394890535,1764079832612,-500.0,0.00015799,2]
[394890536,1764079832622,-500.0,0.00015799,2]
[394890537,1764079832632,-500.0,0.00015799,2]
[394890538,1764079832641,-500.0,0.00015799,2]
[394890539,1764079832652,-500.0,0.00015799,2]
[394890540,1764079832662,-500.0,0.00015799,2]
[394890541,1764079832672,-500.0,0.00015799,2]
[394890542,1764079832681,-200.0,0.00015799,2]
[394890543,1764079832691,-500.0,0.00015799,2]
[394890544,1764079832700,-500.0,0.00015799,2]
[394890545,1764079832709,-500.0,0.00015799,2]
[394890546,1764079832718,-500.0,0.00015799,2]
[394890547,1764079832728,-500.0,0.00015799,2]
[394890548,1764079832736,-500.0,0.00015799,2]
[394890549,1764079832746,-500.0,0.00015799,2]
[394890550,1764079832755,-500.0,0.00015799,2]
[394890551,1764079832765,-500.0,0.00015799,2]
[394890552,1764079832775,-500.0,0.00015799,2]
[394890553,1764079832784,-500.0,0.00015799,2]
[394890554,1764079832794,-668.9,0.00015799,2]
[394890555,1764079832804,-500.0,0.00015799,2]
[394890556,1764079832814,-500.0,0.00015799,2]
[394890557,1764079832824,-500.0,0.00015799,2]
[394890558,1764079832833,-500.0,0.00015799,2]
[394890559,1764079832843,-500.0,0.00015799,2]
[394890560,1764079832852,-500.0,0.00015799,2]
[394890561,1764079832862,-500.0,0.00015799,2]
[394890562,1764079832876,-500.0,0.00015799,2]
[394890563,1764079832885,-452.59436488,0.00015799,2]
[394890564,1764079832895,-2347.840729,0.00015799,2]
[394890565,1764079832904,-250.67117171,0.00015799,2]
[394890566,1764079832914,-2226.52413444,0.00015799,2]
[394890567,1764079832923,-400.54257957,0.00015799,2]
[394890568,1764079832932,-500.0,0.00015799,2]
[394890569,1764079832942,-500.0,0.00015799,2]
[394890570,1764079832951,-500.0,0.00015799,2]
[394890571,1764079832960,-500.0,0.00015799,2]
[394890572,1764079832969,-500.0,0.00015799,2]
[394890573,1764079832979,-500.0,0.00015799,2]
[394890574,1764079832989,-500.0,0.00015799,2]
[394890575,1764079832999,-500.0,0.00015799,2]
[394890576,1764079833008,-500.0,0.00015799,2]
[394890577,1764079833018,-500.0,0.00015799,2]
[394890578,1764079833027,-500.0,0.00015799,2]
[394890579,1764079833036,-431.83806393,0.00015799,2]
[394890580,1764079833045,-136147.81315982,0.000158,2]
[394890581,1764079833058,-15829.80284484,0.000158,2]
[394890582,1764079833070,-46582.58979668,0.000158,2]
[394890583,1764079833082,-47166.19163696,0.000158,2]
[394890584,1764079833127,-182.63265672,0.00015799,2]
[394890585,1764079833136,-239.64762211,0.00015799,2]
[394890586,1764079837942,-247.24530708,0.00015799,2]
[394890587,1764079837951,-500.0,0.00015799,2]
[394890588,1764079837961,-500.0,0.00015799,2]
[394890589,1764079837970,-294.43033403,0.00015799,2]
[394890590,1764079837979,-239.91972056,0.00015799,2]
[394890591,1764079837988,-500.0,0.00015799,2]
[394890592,1764079837998,-500.0,0.00015799,2]
[394890594,1764079838007,-500.0,0.00015799,2]
[394890595,1764079838021,-500.0,0.00015799,2]
[394890596,1764079838030,-1218.40463833,0.000158,2]
[394890597,1764079838041,-1249.75727279,0.000158,2]
[394890598,1764079838053,-818.775,0.000158,2]
[394890599,1764079838064,-3129.47020188,0.000158,2]
[394890600,1764079838075,-1605.0,0.000158,2]
[394890601,1764079838086,-331.439,0.000158,2]
[394890602,1764079838097,-393.87269273,0.000158,2]
[394890603,1764079838125,-6788.06261041,0.000158,2]
[394890604,1764079838137,-416986.74244556,0.000158,2]
[394890605,1764079838146,-725.69013,0.000158,2]
[394890606,1764079838156,-225.54655082,0.000158,2]
[394890607,1764079838166,-500.86220244,0.00015873,2]
[394890608,1764079838175,-235.1184,0.000159,2]
[394890609,1764079838185,-280.663,0.000159,2]
[394890610,1764079838194,-725.69012,0.000159,2]
[394890611,1764079838204,-11768.596,0.000159,2]
[394890612,1764079838214,-2500.0,0.000159,2]
[394890613,1764079838223,-194.48555873,0.000159,2]
[394890614,1764079838237,-166.49,0.00015902,2]
[394890616,1764079838247,-725.69012,0.0001593,2]
[394890617,1764079838257,-218.94135854,0.00015998,2]
[394890618,1764079838266,-108287.57701424,0.00016,4]
[394890620,1764079840088,-532.17350158,0.00015699,2]
[394890621,1764079840097,-1555.42649842,0.00016,4]
[394890622,1764079840108,-1286.75478,0.00016,4]
[394890623,1764079840271,-97410.70803292,0.00016,4]
[394890624,1764079840280,-1112.58,0.00016005,2]
[394890625,1764079840289,-30177.39,0.00016024,2]
[394890626,1764079840299,-441.04584186,0.00016042,2]
[394890627,1764079840308,-725.69013,0.0001605,2]
[394890628,1764079840318,-668.9,0.00016073,2]
[394890629,1764079840327,-200.0,0.00016118,2]
[394890630,1764079840336,-725.69013,0.0001618,2]
[394890631,1764079840345,-150.0,0.000162,2]
[394890632,1764079840354,-150.0,0.000162,2]
[394890633,1764079840368,-150.0,0.000162,2]
[394890634,1764079840378,-150.0,0.000162,2]
[394890635,1764079840387,-150.0,0.000162,2]
[394890636,1764079840396,-150.0,0.000162,2]
[394890637,1764079840406,-152.75012698,0.000162,2]
[394890638,1764079840415,-150.0,0.000162,2]
[394890639,1764079840424,-150.0,0.000162,2]
[394890640,1764079840433,-150.0,0.000162,2]
[394890641,1764079840444,-725.69012,0.000163,2]
[394890642,1764079840453,-165.39,0.00016306,2]
[394890643,1764079840462,-1227.51,0.0001631,2]
[394890644,1764079840471,-668.9,0.00016347,2]
[394890645,1764079840480,-193.0,0.00016375,2]
[394890646,1764079840489,-250.0,0.00016375,2]
[394890647,1764079840498,-250.0,0.00016383,2]
[394890649,1764079840508,-194.48555873,0.000164,2]
[394890651,1764079840517,-166.49,0.0001641,2]
[394890653,1764079840526,-500.0,0.00016438,2]
[394890655,1764079840535,-500.0,0.00016438,2]
[394890657,1764079840544,-500.0,0.00016438,2]
[394890659,1764079840553,-546.51,0.00016438,2]
[394890661,1764079840562,-151.0,0.00016438,2]
[394890663,1764079840571,-3818.01,0.00016438,2]
[394890666,1764079840580,-150.0,0.000165,2]
[394890668,1764079840589,-7163.32116459,0.00016514,2]
[394890671,1764079840607,-2611.83883541,0.00016514,2]
[394890673,1764079840616,-150.0,0.00016532,2]
[394890675,1764079840632,-668.9,0.00016621,2]
[394890678,1764079840643,-150.0,0.0001665,2]
[394890679,1764079840653,-150.0,0.0001665,2]
[394890680,1764079840663,-151.85236204,0.00016724,2]
[394890681,1764079840675,-848.14763796,0.00016724,2]
[394890682,1764079840684,-150.0,0.000168,2]
[394890683,1764079840693,-150.0,0.000168,2]
[394890684,1764079840702,-150.0,0.000168,2]
[394890685,1764079840711,-150.0,0.000168,2]
[394890686,1764079840721,-300.0,0.00016823,2]
[394890687,1764079840730,-668.9,0.00016895,2]
[394890688,1764079840739,-253.84207222,0.000169,2]
[394890689,1764079840749,-244.31797387,0.000169,2]
[394890690,1764079840758,-194.48555873,0.000169,2]
[394890691,1764079840767,-185.64399536,0.000169,2]
[394890692,1764079840776,-166.49,0.00016919,2]
[394890693,1764079840785,-9999.99,0.00016922,2]
[394890694,1764079840795,-150.99,0.00016922,2]
[394890695,1764079840804,-3031.67794651,0.00016922,2]
[394890696,1764079840816,-1962.01205349,0.00016922,2]
[394890697,1764079840826,-1025.18794651,0.00016959,2]
[394890698,1764079840838,-489.81205349,0.00016959,2]
[394890699,1764079840847,-243.2085705,0.00016989,2]
[394890700,1764079840857,-500.0,0.00016989,2]
[394890701,1764079840867,-500.0,0.00016989,2]
[394890702,1764079840876,-721.12765535,0.00016989,2]
[394890703,1764079840886,-250.0,0.00016989,2]
[394890704,1764079840895,-244.02628622,0.00016989,2]
[394890705,1764079840906,-765.81623463,0.0001699,2]
[394890706,1764079840915,-300.0,0.00016999,2]
[394890707,1764079840924,-2001.0,0.00017,2]
[394890708,1764079840934,-1574.12259879,0.00017,2]
[394890709,1764079840946,-4562.5,0.00017,2]
[394890710,1764079840958,-4903.630008,0.00017,2]
[394890711,1764079840969,-1599.99231582,0.00017,2]
[394890712,1764079840980,-278.29821398,0.00017,2]
[394890713,1764079840991,-1034616.4007517,0.00017,2]